bitfinex/quotes_ETHUSD_20240703
["timestamp","ask_amount","ask_price","bid_price","bid_amount"]
[1719973613431,11.2689,3392.5,3391.7,0.747]
[1719973613635,0.51060475,3392.4,3391.7,0.747]
[1719973613804,0.51060475,3392.3,3391.7,0.747]
[1719973614018,8.842,3392.5,3391.8,2.35505945]
[1719973614219,8.842,3392.5,3392.0,2.35847]
[1719973616609,8.842,3392.5,3391.9,2.35855]
[1719973616811,8.842,3392.5,3391.8,2.35862]
[1719973617663,8.842,3392.5,3391.6,2.2517]
[1719973617815,3.552921,3392.4,3391.6,5.35746]
[1719973618013,2.4906,3392.3,3391.6,5.35746]
[1719973618411,2.4906,3392.3,3391.6,0.747]
[1719973619018,2.4906,3392.3,3391.6,3.10576]
[1719973619220,2.35822,3392.4,3391.6,3.10576]
[1719973619438,9.589,3392.5,3391.6,3.10576]
[1719973619641,8.842,3392.5,3391.7,0.747]
[1719973619844,11.20017,3392.5,3391.7,0.747]
[1719973620852,11.20017,3392.5,3391.8,2.2761]
[1719973621147,8.842,3392.5,3391.9,2.41746884]
[1719973621346,8.842,3392.5,3392.0,1.45222588]
[1719973621813,8.842,3392.5,3392.1,0.05895356]
[1719973622013,8.842,3392.5,3392.0,0.747]
[1719973623049,8.842,3392.5,3392.0,0.80595357]
[1719973623225,8.842,3392.5,3392.0,1.58587893]
[1719973626471,8.842,3392.5,3392.0,0.80595357]
[1719973628690,8.842,3392.5,3392.1,2.4364]
[1719973629543,8.842,3392.5,3392.1,4.7948]
[1719973630143,8.842,3392.5,3392.2,0.05895198]
[1719973630489,8.842,3392.5,3392.1,4.7948]
[1719973631348,8.842,3392.5,3392.2,0.058952]
[1719973631759,8.842,3392.5,3392.1,5.584831]
[1719973632180,8.842,3392.5,3392.2,0.05895201]
[1719973632888,8.842,3392.5,3392.1,5.584831]
[1719973634400,8.842,3392.5,3392.1,4.7948]
[1719973635587,8.842,3392.5,3392.1,2.3584]
[1719973636101,0.51054936,3392.4,3392.1,2.3584]
[1719973636312,8.842,3392.5,3392.1,2.3584]
[1719973636804,8.842,3392.5,3391.9,4.84311]
[1719973636966,0.51054924,3392.4,3391.9,4.84311]
[1719973637163,11.3395,3392.5,3391.9,4.84311]
[1719973637471,0.51055004,3392.4,3391.9,4.84311]
[1719973637696,11.3395,3392.5,3391.9,4.84311]
[1719973637991,0.51054978,3392.4,3391.9,4.84311]
[1719973638199,11.3395,3392.5,3391.9,4.84311]
[1719973638394,0.51055102,3392.4,3391.9,4.84311]
[1719973638703,11.3395,3392.5,3391.9,4.84311]
[1719973639006,0.51055086,3392.4,3391.9,2.35851]
[1719973639380,11.3395,3392.5,3391.9,2.35851]
[1719973639715,0.51055126,3392.4,3391.9,2.35851]
[1719973639994,0.51055126,3392.4,3391.8,0.747]
[1719973639995,11.3395,3392.5,3391.8,3.10562]
[1719973640195,0.51055129,3392.4,3391.8,3.10562]
[1719973640498,11.3395,3392.5,3391.8,3.10562]
[1719973640799,0.51055184,3392.4,3391.8,3.10562]
[1719973640976,0.51055184,3392.3,3391.8,4.03708759]
[1719973641178,11.3395,3392.5,3391.8,4.03708759]
[1719973641179,0.51055184,3392.4,3391.8,4.03708759]
[1719973641868,0.51055184,3392.4,3391.9,2.35855]
[1719973642491,8.842,3392.5,3391.9,2.35855]
[1719973642692,0.51056052,3392.3,3392.0,0.747]
[1719973642869,8.842,3392.5,3392.0,0.747]
[1719973643203,0.51055367,3392.4,3392.0,0.747]
[1719973643501,0.51055367,3392.3,3392.0,0.747]
[1719973643707,0.51055367,3392.4,3392.0,3.10548]
[1719973644002,0.51055829,3392.3,3392.0,3.10548]
[1719973644207,8.842,3392.5,3392.0,3.10548]
[1719973644370,0.51055907,3392.4,3392.0,3.10548]
[1719973644700,0.51055907,3392.3,3392.0,3.10548]
[1719973644905,0.51055907,3392.4,3392.0,3.10548]
[1719973645071,0.51056057,3392.3,3392.0,3.10548]
[1719973645271,8.842,3392.5,3392.0,3.10548]
[1719973645472,0.51055876,3392.4,3392.1,2.4979]
[1719973645673,0.51055517,3392.3,3392.1,2.4979]
[1719973645884,8.842,3392.5,3392.1,2.4979]
[1719973646086,0.51055709,3392.4,3392.1,2.4979]
[1719973646286,0.51055709,3392.3,3392.1,2.4979]
[1719973646483,0.51055709,3392.4,3392.1,3.3794964]
[1719973646689,0.51055378,3392.3,3392.1,3.3794964]
[1719973646977,8.842,3392.5,3392.1,3.3794964]
[1719973647212,8.842,3392.5,3392.1,4.85631]
[1719973647213,0.51055234,3392.4,3392.1,4.85631]
[1719973647523,8.842,3392.5,3392.3,3.10521]
[1719973647879,8.842,3392.5,3392.3,3.16416084]
[1719973648670,8.842,3392.5,3392.4,2.35821]
[1719973655146,8.842,3392.5,3392.4,4.71642]
[1719973655328,8.842,3392.5,3392.4,7.99914709]
[1719973656243,8.842,3392.5,3392.4,8.74614709]
[1719973657139,8.842,3392.5,3392.4,11.10435709]
[1719973657344,7.48,3393.4,3393.2,2.35765]
[1719973657632,2.3927,3393.5,3393.2,2.35765]
[1719973657818,0.51039124,3393.4,3393.2,2.35765]
[1719973658189,2.3927,3393.5,3393.2,2.35765]
[1719973659351,2.3927,3393.5,3393.0,2.35777]
[1719973659352,2.70667,3393.5,3393.0,2.35777]
[1719973659531,0.51040802,3393.4,3393.0,2.35777]
[1719973659862,2.70667,3393.5,3393.0,2.35777]
[1719973660071,0.51042098,3393.4,3393.0,2.35777]
[1719973660227,2.70667,3393.5,3393.0,2.35777]
[1719973660429,0.51041739,3393.4,3393.0,2.35777]
[1719973660627,2.70667,3393.5,3393.0,2.35777]
[1719973660870,0.51042102,3393.4,3393.0,2.35777]
[1719973661037,2.70667,3393.5,3393.0,2.35777]
[1719973662130,2.70667,3393.5,3392.9,2.35785]
[1719973662359,0.345367,3393.4,3392.9,2.35785]
[1719973662631,2.3927,3393.5,3392.9,2.35785]
[1719973662844,2.3927,3393.5,3393.0,2.35779]
[1719973664875,8.8411,3393.4,3393.0,2.35779]
[1719973666998,8.8411,3393.4,3393.2,2.3576]
[1719973667288,8.8411,3393.4,3393.3,2.35758]
[1719973668098,8.8411,3393.4,3393.3,3.10458]
[1719973668394,8.8411,3393.4,3393.3,2.35758]
[1719973668547,8.05412975,3393.4,3393.3,11.114284]
[1719973668903,8.05412975,3393.4,3393.3,10.31904]
[1719973669558,7.86284937,3393.4,3393.3,10.31904]
[1719973670377,7.86284937,3393.4,3393.3,7.21446]
[1719973670581,7.86284937,3393.4,3393.3,8.918679]
[1719973671297,7.86284937,3393.4,3393.3,8.171679]
[1719973671620,7.86284937,3393.4,3393.3,8.918679]
[1719973673259,7.86284937,3393.4,3393.3,6.561099]
[1719973673456,7.86284937,3393.4,3393.3,4.061799]
[1719973681001,7.86284937,3393.4,3393.3,6.419379]
[1719973682408,7.10524937,3393.4,3393.3,6.419379]
[1719973682878,7.10524937,3393.4,3393.3,3.314799]
[1719973683226,7.10524937,3393.4,3393.3,4.061799]
[1719973686243,7.10524937,3393.4,3393.3,0.957219]
[1719973686408,7.10524937,3393.4,3393.2,2.35765]
[1719973686409,7.10524937,3393.4,3393.2,0.747]
[1719973686598,7.10524937,3393.4,3393.0,2.35777]
[1719973686801,7.10524937,3393.4,3393.0,0.747]
[1719973687634,7.10524937,3393.4,3393.0,3.3961381]
[1719973687840,7.10524937,3393.4,3393.0,4.51325091]
[1719973688758,7.10524937,3393.4,3393.2,0.747]
[1719973691163,7.10524937,3393.4,3393.3,4.84741557]
[1719973691322,7.10524937,3393.4,3393.3,7.20499557]
[1719973691323,4.6808484,3393.4,3393.3,7.20499557]
[1719973691522,4.6808484,3393.4,3393.3,8.08667167]
[1719973691523,3.7352184,3393.4,3393.3,8.08667167]
[1719973692083,7.48,3394.2,3393.8,2.35721]
[1719973692236,2.2672,3394.4,3393.8,3.10421]
[1719973692436,0.51026707,3394.3,3393.8,3.10421]
[1719973692632,2.2672,3394.4,3393.8,3.10421]
[1719973692840,0.51026713,3394.3,3393.9,2.41607101]
[1719973693173,0.51027557,3394.2,3393.9,2.41607101]
[1719973693370,2.2672,3394.4,3393.9,2.41607101]
[1719973693659,0.51027821,3394.3,3393.9,2.41607101]
[1719973693860,2.2672,3394.4,3393.9,2.41607101]
[1719973694060,0.51026202,3394.3,3393.9,2.41607101]
[1719973694279,2.2672,3394.4,3393.9,2.41607101]
[1719973694583,0.51026126,3394.3,3393.9,2.41607101]
[1719973695081,2.2672,3394.4,3393.9,2.41607101]
[1719973695383,0.51026496,3394.3,3393.9,2.35715]
[1719973695680,2.2672,3394.4,3393.9,2.35715]
[1719973695979,0.51026679,3394.3,3393.9,2.35715]
[1719973696182,2.2672,3394.4,3393.7,2.35726]
[1719973696389,1.55968393,3394.3,3393.7,2.35726]
[1719973696541,0.51026393,3394.2,3393.7,2.35726]
[1719973697865,0.51026393,3394.3,3393.7,2.35726]
[1719973698201,2.2672,3394.4,3393.7,2.35726]
[1719973698399,0.51026657,3394.2,3393.7,2.35726]
[1719973698618,7.48,3394.6,3394.1,0.747]
[1719973698898,0.51023239,3394.5,3393.9,3.10412]
[1719973699063,2.79473239,3394.4,3393.9,3.10412]
[1719973699276,2.2845,3394.4,3393.9,3.10412]
[1719973699474,2.2845,3394.4,3394.0,2.35709]
[1719973700174,2.2845,3394.4,3394.1,0.05891977]
[1719973700775,7.48,3394.6,3394.1,0.05891977]
[1719973700971,0.51024128,3394.5,3394.1,0.05891977]
[1719973701176,7.48,3394.6,3394.1,0.05891977]
[1719973701394,0.51024374,3394.5,3394.1,0.05891977]
[1719973701714,7.48,3394.6,3394.1,0.05891977]
[1719973702013,0.51024979,3394.5,3394.1,0.05891977]
[1719973702223,7.48,3394.6,3394.1,0.05891977]
[1719973702377,0.51025066,3394.5,3394.1,0.05891977]
[1719973702572,7.48,3394.6,3394.1,0.05891977]
[1719973702806,0.51025092,3394.5,3394.1,0.05891977]
[1719973703030,0.51025452,3394.4,3394.1,0.05891977]
[1719973703190,2.2867,3394.7,3394.1,0.05891977]
[1719973703391,0.51025214,3394.6,3394.1,0.05891977]
[1719973703585,2.2867,3394.7,3394.1,0.05891977]
[1719973703586,0.51025214,3394.5,3394.1,0.05891977]
[1719973703793,2.2867,3394.7,3394.1,0.05891977]
[1719973704018,0.51025042,3394.6,3394.1,0.05891977]
[1719973704220,0.51025042,3394.5,3394.1,0.05891977]
[1719973704448,2.2867,3394.7,3394.1,0.05891977]
[1719973704652,0.51025199,3394.6,3394.1,0.05891977]
[1719973704818,0.51025199,3394.5,3394.1,0.05891977]
[1719973705019,7.48,3395.2,3394.5,2.35669]
[1719973705232,0.51018089,3395.1,3394.6,0.80590942]
[1719973705516,7.48,3395.2,3394.6,0.80590942]
[1719973705716,0.51016614,3395.1,3394.6,0.80590942]
[1719973705915,7.48,3395.2,3394.6,0.80590942]
[1719973706128,0.51016562,3395.1,3394.6,3.16258942]
[1719973706336,7.48,3395.2,3394.6,3.16258942]
[1719973706533,0.51016602,3395.1,3394.6,3.16258942]
[1719973706753,7.48,3395.2,3394.6,3.16258942]
[1719973707051,0.51016396,3395.1,3394.6,3.16258942]
[1719973707228,7.48,3395.2,3394.6,2.41558942]
[1719973707426,7.48,3395.2,3394.8,0.747]
[1719973707609,7.48,3395.2,3394.8,3.16242654]
[1719973708539,7.48,3395.2,3394.8,2.35652]
[1719973708911,2.2914,3395.5,3394.8,2.35652]
[1719973709112,0.51014309,3395.4,3394.8,2.35652]
[1719973709356,0.51014309,3395.3,3394.8,2.35652]
[1719973709557,2.2914,3395.5,3394.8,2.35652]
[1719973709727,0.5101396,3395.4,3394.8,2.35652]
[1719973709913,2.2914,3395.5,3394.8,2.41542632]
[1719973710108,0.51014186,3395.4,3394.8,2.41542632]
[1719973710312,3.59348249,3395.5,3394.8,2.41542632]
[1719973710739,0.51013524,3395.4,3394.8,5.60072632]
[1719973710967,1.30208249,3395.5,3394.8,5.60072632]
[1719973711115,0.51012928,3395.4,3394.8,5.60072632]
[1719973711453,7.48,3395.6,3394.8,5.60072632]
[1719973711653,0.51012278,3395.5,3394.8,5.60072632]
[1719973711857,7.48,3395.6,3394.9,2.35647]
[1719973713733,7.48,3395.6,3395.0,2.35639]
[1719973714050,8.227,3395.6,3395.0,2.35639]
[1719973714847,0.747,3395.6,3395.0,2.35639]
[1719973715439,5.48155,3395.8,3394.9,0.05890522]
[1719973715630,2.343149,3395.6,3394.8,4.79481]
[1719973716141,2.343149,3395.6,3394.8,2.35651]
[1719973716329,2.343149,3395.6,3394.8,2.35652]
[1719973716523,2.4384,3395.5,3394.8,2.35652]
[1719973716770,3.1521399,3395.5,3394.8,2.35652]
[1719973720084,3.1521399,3395.5,3394.4,2.262]
[1719973720288,2.4233,3395.0,3394.2,3.10391]
[1719973720952,2.4233,3395.0,3394.1,8.11920294]
[1719973720953,1.2572211,3394.9,3394.1,2.4702]
[1719973721156,0.5102211,3394.8,3394.0,2.35707]
[1719973721352,1.299658,3394.9,3394.0,2.35707]
[1719973721904,3.656128,3394.9,3394.0,2.35707]
[1719973722402,3.656128,3394.9,3394.0,3.17995905]
[1719973722577,0.51022801,3394.8,3394.0,3.17995905]
[1719973722780,3.10347,3394.9,3394.0,3.17995905]
[1719973723290,0.51022786,3394.8,3394.0,3.17995905]
[1719973723485,3.10347,3394.9,3394.0,3.17995905]
[1719973723692,3.41741133,3394.9,3394.0,3.17995905]
[1719973723884,0.51022788,3394.8,3394.0,3.17995905]
[1719973724093,3.41741133,3394.9,3394.0,3.17995905]
[1719973724263,0.51022784,3394.8,3394.0,3.17995905]
[1719973724477,3.41741133,3394.9,3394.0,3.17995905]
[1719973724695,0.51022812,3394.8,3394.0,2.35707]
[1719973724894,3.41741133,3394.9,3394.0,2.35707]
[1719973725164,0.51022813,3394.8,3394.0,2.35707]
[1719973725378,3.41741133,3394.9,3394.0,2.35707]
[1719973725579,0.51022857,3394.8,3394.0,3.10407]
[1719973725785,3.41741133,3394.9,3394.0,3.10407]
[1719973725980,0.51022791,3394.8,3394.0,3.10407]
[1719973726186,4.77971,3395.0,3394.1,2.35702]
[1719973726389,0.51022331,3394.9,3394.1,2.35702]
[1719973726695,0.51022331,3394.8,3394.1,2.35702]
[1719973726902,4.77971,3395.0,3394.1,2.35702]
[1719973727092,0.51022372,3394.9,3394.1,2.35702]
[1719973727268,0.51022372,3394.8,3394.1,2.35702]
[1719973727465,4.77971,3395.0,3394.1,2.35702]
[1719973727810,1.81089488,3394.9,3394.1,2.35702]
[1719973728008,0.51022388,3394.8,3394.1,2.35702]
[1719973729315,2.047671,3394.9,3394.1,2.35702]
[1719973729805,0.51022853,3394.8,3394.1,2.35702]
[1719973730014,0.51022853,3394.7,3394.1,2.35702]
[1719973730307,9.83627,3395.2,3393.8,5.12482051]
[1719973730308,7.48,3395.2,3394.6,0.747]
[1719973730470,0.51016866,3395.1,3394.6,2.35667]
[1719973730667,7.48,3395.2,3394.6,2.35667]
[1719973731172,7.48,3395.2,3394.7,2.35661]
[1719973731983,7.48,3395.2,3394.6,2.35667]
[1719973732179,7.48,3395.2,3394.7,0.310367]
[1719973732793,2.4969,3395.5,3394.7,0.310367]
[1719973732997,5.4969,3395.5,3394.7,0.310367]
[1719973733202,1.25713841,3395.4,3394.7,2.35659]
[1719973733389,3.747,3395.4,3394.7,2.35659]
[1719973733583,3.747,3395.4,3394.5,2.35671]
[1719973733787,0.747,3395.2,3394.5,2.35671]
[1719973733995,0.747,3395.2,3394.4,2.3568]
[1719973734921,0.747,3395.2,3394.4,3.147305]
[1719973737404,6.10314,3395.4,3394.4,3.147305]
[1719973737774,0.51014719,3395.3,3394.4,3.147305]
[1719973737976,0.51014719,3395.3,3394.5,0.747]
[1719973738185,0.51014719,3395.3,3394.6,2.35665]
[1719973739380,3.747,3395.4,3394.6,2.35665]
[1719973740203,3.747,3395.4,3394.5,1.6165555]
[1719973740403,3.747,3395.4,3394.6,2.35661]
[1719973743811,3.747,3395.4,3394.7,2.35659]
[1719973745213,3.0,3395.4,3394.8,2.4595]
[1719973745413,5.4969,3395.5,3394.9,2.35647]
[1719973745613,5.4969,3395.5,3394.5,0.8695555]
[1719973745614,0.747,3395.3,3394.4,2.3568]
[1719973745917,2.4318,3395.2,3394.4,3.1038]
[1719973746115,2.4318,3395.2,3394.4,3.68891535]
[1719973746520,2.4318,3395.2,3394.7,2.35656]
[1719973747720,2.4318,3395.2,3394.2,4.81644]
[1719973747923,0.5101552,3395.1,3394.4,2.35675]
[1719973748220,0.5101552,3395.0,3394.5,2.35674]
[1719973750989,0.747,3395.1,3394.5,2.219216]
[1719973751186,0.51017465,3395.0,3394.3,2.35688]
[1719973752528,0.51017465,3395.0,3394.4,2.35682]
[1719973752727,0.51017465,3395.1,3394.4,2.35682]
[1719973752898,0.51017465,3395.0,3394.5,0.747]
[1719973753219,2.4318,3395.2,3394.5,3.10374]
[1719973753425,0.51015859,3395.1,3394.5,3.10374]
[1719973753624,0.51015859,3395.0,3394.5,3.10374]
[1719973753933,0.51015859,3395.1,3394.5,3.10374]
[1719973754149,2.4318,3395.2,3394.5,3.10374]
[1719973754288,0.51017788,3395.0,3394.5,3.10374]
[1719973754493,0.51017788,3394.9,3394.5,3.10374]
[1719973754815,0.51017864,3394.8,3394.5,3.10374]
[1719973755015,2.4318,3395.2,3394.5,3.10374]
[1719973755187,0.5101783,3395.1,3394.5,3.10374]
[1719973755388,0.5101783,3395.0,3394.5,3.10374]
[1719973755623,0.5101783,3394.9,3394.5,3.10374]
[1719973755824,0.5101783,3394.8,3394.5,3.10374]
[1719973756001,2.4318,3395.2,3394.5,3.10374]
[1719973756201,0.51017398,3395.1,3394.5,3.10374]
[1719973756433,0.51017398,3395.0,3394.5,3.10374]
[1719973756603,0.51017398,3395.1,3394.5,3.10374]
[1719973756804,0.51017398,3395.0,3394.5,3.10374]
[1719973757118,0.51017398,3394.9,3394.5,3.10374]
[1719973757318,2.4318,3395.2,3394.5,3.10374]
[1719973757518,0.51017373,3394.8,3394.5,3.10374]
[1719973757697,2.4318,3395.2,3394.5,3.10374]
[1719973758024,0.51017243,3395.1,3394.5,3.10374]
[1719973758226,2.4318,3395.2,3394.5,3.10374]
[1719973758227,0.51017243,3395.0,3394.5,3.10374]
[1719973758428,0.51017243,3395.1,3394.5,3.10374]
[1719973760300,0.51017243,3395.1,3394.6,0.05891218]
[1719973760600,9.959,3395.6,3394.9,2.35646]
[1719973760830,0.51012941,3395.5,3394.9,2.35646]
[1719973761132,0.51012941,3395.4,3394.9,2.35646]
[1719973761324,0.51012941,3395.3,3394.9,2.35646]
[1719973761632,0.51012941,3395.2,3394.9,2.35646]
[1719973761851,0.51012941,3395.1,3394.9,3.134775]
[1719973762139,10.706,3395.6,3395.0,2.3564]
[1719973762140,9.959,3395.6,3395.0,2.3564]
[1719973762343,0.51011223,3395.5,3395.0,2.3564]
[1719973762504,0.51011223,3395.4,3395.0,2.3564]
[1719973762705,0.51011223,3395.3,3395.0,2.3564]
[1719973762938,0.51011223,3395.2,3395.0,2.3564]
[1719973763110,0.51011223,3395.1,3395.0,2.3564]
[1719973763315,0.51011223,3395.5,3395.0,3.060009]
[1719973763524,9.959,3395.6,3395.0,2.3564]
[1719973763824,0.51010299,3395.5,3395.0,2.3564]
[1719973764028,0.51010299,3395.4,3395.0,2.3564]
[1719973764200,0.51010299,3395.3,3395.0,2.3564]
[1719973764400,0.51010299,3395.2,3395.0,2.3564]
[1719973764639,9.959,3395.6,3395.0,2.3564]
[1719973764797,0.5101026,3395.5,3395.0,2.3564]
[1719973765000,0.5101026,3395.4,3395.0,2.3564]
[1719973765201,0.5101026,3395.3,3395.0,2.3564]
[1719973765515,0.5101026,3395.2,3395.0,2.3564]
[1719973765714,9.959,3395.6,3395.0,2.3564]
[1719973766054,0.51010076,3395.5,3395.0,2.3564]
[1719973766353,0.51010076,3395.4,3395.0,2.3564]
[1719973766532,0.747,3395.3,3394.6,4.73957]
[1719973766703,0.747,3395.1,3394.5,2.35673]
[1719973766905,0.83188754,3395.0,3394.5,2.35673]
[1719973767141,0.32172,3395.0,3394.5,2.35673]
[1719973767347,0.5101938,3394.9,3394.5,2.35673]
[1719973767657,0.5101938,3394.8,3394.5,2.35673]
[1719973767805,0.747,3395.1,3394.5,2.35673]
[1719973768150,0.51017872,3395.0,3394.4,2.35676]
[1719973768444,0.51017872,3394.9,3394.6,2.3829]
[1719973768621,0.51017872,3395.1,3394.6,2.3829]
[1719973768810,2.4702,3395.2,3394.6,2.3829]
[1719973768811,0.51017872,3395.0,3394.6,2.3829]
[1719973769014,0.51017872,3394.9,3394.6,2.3829]
[1719973769214,2.4702,3395.2,3394.6,2.3829]
[1719973769511,0.51016676,3395.1,3394.8,2.35654]
[1719973769741,0.51016676,3395.0,3394.8,2.35654]
[1719973769939,3.46361008,3395.4,3394.8,2.35654]
[1719973770148,0.5101379,3395.3,3394.8,2.35654]
[1719973770344,0.5101379,3395.2,3394.8,2.35654]
[1719973770654,0.5101379,3395.1,3394.8,2.35654]
[1719973770856,0.5101379,3395.3,3394.8,2.35654]
[1719973771145,0.5101379,3395.2,3394.8,4.70174]
[1719973771351,0.5101379,3395.1,3394.8,4.70174]
[1719973771551,10.5789,3395.6,3394.8,4.70174]
[1719973771738,1.80360674,3395.5,3394.8,4.70174]
[1719973771934,10.5789,3395.6,3395.2,0.747]
[1719973771935,0.51012474,3395.4,3395.2,0.747]
[1719973772104,7.48,3395.6,3395.2,0.747]
[1719973772105,19.65,3395.9,3395.2,3.10325]
[1719973772310,0.51008069,3395.8,3395.2,3.10325]
[1719973772640,0.51008069,3395.7,3395.2,3.10325]
[1719973772840,0.51008069,3395.6,3395.2,3.10325]
[1719973773053,19.65,3395.9,3395.2,3.10325]
[1719973773203,2.84976463,3395.8,3395.3,2.41509023]
[1719973773410,0.51006463,3395.7,3395.3,2.41509023]
[1719973773723,0.51006463,3395.6,3395.3,2.41509023]
[1719973773929,9.7843,3395.9,3395.3,2.35619]
[1719973774242,1.86319564,3395.8,3395.3,2.35619]
[1719973774470,0.51006564,3395.7,3395.3,2.35619]
[1719973774610,0.51006564,3395.7,3395.1,2.35628]
[1719973775044,2.3043,3395.6,3395.1,2.3563]
[1719973775243,0.51006564,3395.5,3395.1,2.3563]
[1719973775606,0.51006564,3395.5,3394.9,2.35644]
[1719973776378,0.747,3395.3,3394.5,4.79069]
[1719973776666,2.80661418,3395.2,3394.5,2.434]
[1719973776967,2.80661418,3395.2,3394.4,3.0]
[1719973776968,0.51011418,3395.1,3394.4,3.0]
[1719973777260,0.51011418,3395.1,3394.4,0.80172064]
[1719973777565,0.51011418,3395.1,3394.6,2.35666]
[1719973779384,2.2965,3395.2,3394.6,2.35666]
[1719973779601,0.51015788,3395.1,3394.6,2.35666]
[1719973779735,2.2965,3395.2,3394.6,2.35666]
[1719973780074,0.51015789,3395.1,3394.6,2.35666]
[1719973780391,2.2965,3395.2,3394.6,2.35666]
[1719973780602,0.51015824,3395.1,3394.6,2.35666]
[1719973780740,2.2965,3395.2,3394.6,2.35666]
[1719973781097,0.51015962,3395.1,3394.6,2.35666]
[1719973781240,3.42304501,3395.2,3394.6,2.35666]
[1719973781439,0.51015993,3395.1,3394.6,2.35666]
[1719973781671,3.42304501,3395.2,3394.6,2.35666]
[1719973781879,0.51015992,3395.1,3394.6,2.35666]
[1719973782182,3.42304501,3395.2,3394.6,2.35666]
[1719973782376,0.51015987,3395.1,3394.6,2.35666]
[1719973782679,3.42304501,3395.2,3394.6,2.35666]
[1719973782868,0.51016718,3395.1,3394.6,2.35666]
[1719973783037,0.51016718,3395.0,3394.6,2.35666]
[1719973783240,3.42304501,3395.2,3394.6,2.35666]
[1719973783444,0.51016057,3395.1,3394.6,2.35666]
[1719973783745,3.42304501,3395.2,3394.6,2.35666]
[1719973783966,0.51016069,3395.1,3394.6,2.35666]
[1719973784176,0.51016083,3395.0,3394.6,2.35666]
[1719973784344,3.42304501,3395.2,3394.6,2.35666]
[1719973784563,0.51016076,3395.1,3394.6,2.35666]
[1719973784894,0.51016076,3395.0,3394.6,2.35666]
[1719973785057,0.51016076,3395.1,3394.6,2.35666]
[1719973785263,0.51016083,3395.0,3394.6,2.35666]
[1719973785460,3.42304501,3395.2,3394.6,2.35666]
[1719973785684,0.51017577,3395.1,3394.6,2.35666]
[1719973785847,0.51017577,3395.0,3394.6,2.35666]
[1719973786185,3.42304501,3395.2,3394.6,2.35666]
[1719973786390,0.51017527,3395.1,3394.6,2.35666]
[1719973786550,0.51017527,3395.0,3394.6,2.35666]
[1719973786886,3.42304501,3395.2,3394.6,2.35666]
[1719973787189,0.9271725,3395.1,3394.3,3.10388]
[1719973787398,0.510168,3395.0,3394.3,2.35688]
[1719973788662,0.51017688,3394.9,3394.3,2.35688]
[1719973791111,2.2945,3394.8,3394.3,2.35688]
[1719973791717,2.2945,3394.8,3394.1,1.03872637]
[1719973791913,2.2945,3394.8,3394.2,2.35694]
[1719973792215,2.2945,3394.8,3394.3,2.35689]
[1719973792415,0.51017688,3394.9,3394.3,3.10389]
[1719973793917,0.51017688,3394.9,3394.4,2.4861]
[1719973796117,0.51017688,3394.9,3394.5,3.10374]
[1719973796280,0.51017688,3394.9,3394.6,0.05891098]
[1719973800214,0.51017688,3394.9,3394.7,2.9214551]
[1719973800418,0.51017688,3394.9,3394.8,2.35654]
[1719973800582,9.8469,3396.1,3394.9,2.4395]
[1719973800785,0.51006531,3396.0,3395.6,3.10298]
[1719973800984,9.8469,3396.4,3395.7,2.41480121]
[1719973801218,0.50999586,3396.3,3395.7,2.41480121]
[1719973801423,0.50999586,3396.2,3395.7,2.41480121]
[1719973801591,0.50999586,3396.1,3395.7,2.41480121]
[1719973801795,9.8469,3396.4,3395.7,2.41480121]
[1719973802003,0.50998595,3396.3,3395.7,2.41480121]
[1719973802200,0.50998595,3396.2,3395.7,2.41480121]
[1719973802402,0.50998595,3396.3,3395.7,2.41480121]
[1719973802611,9.8469,3396.4,3395.8,2.41473076]
[1719973802829,0.50998026,3396.3,3395.8,2.41473076]
[1719973803001,9.8469,3396.4,3395.8,2.41473076]
[1719973803325,0.50998164,3396.3,3395.8,2.41473076]
[1719973803526,9.8469,3396.4,3395.8,2.41473076]
[1719973803902,0.50998097,3396.3,3395.8,2.41473076]
[1719973804086,9.8469,3396.4,3395.8,2.41473076]
[1719973804426,0.50998102,3396.3,3395.8,2.41473076]
[1719973804581,9.8469,3396.4,3395.8,2.41473076]
[1719973805224,7.48,3396.4,3395.9,2.35576]
[1719973806333,7.48,3396.4,3396.0,2.35565]
[1719973807022,7.48,3396.4,3396.1,2.35563]
[1719973808685,7.48,3396.4,3396.2,2.35551]
[1719973808890,7.48,3396.4,3396.3,2.3555]
[1719973809199,2.3166,3396.7,3396.3,2.3555]
[1719973809713,3.0636,3396.7,3396.3,2.3555]
[1719973810828,2.3166,3396.7,3396.3,2.3555]
[1719973810983,3.0636,3396.7,3396.3,2.3555]
[1719973811388,0.747,3396.7,3396.3,2.3555]
[1719973811803,0.747,3396.8,3396.3,2.3555]
[1719973813420,8.47118,3396.9,3396.3,2.3555]
[1719973813625,9.21818,3396.9,3396.3,2.3555]
[1719973814603,9.21818,3396.9,3396.3,2.217278]
[1719973815006,9.21818,3396.9,3395.7,2.3204]
[1719973815007,0.747,3396.4,3395.7,2.3204]
[1719973815213,0.747,3396.1,3395.4,2.3204]
[1719973815441,0.747,3396.1,3395.6,2.35598]
[1719973816231,7.48,3396.4,3395.4,2.3204]
[1719973816437,3.1224,3396.3,3395.8,2.35584]
[1719973816852,3.1224,3396.3,3395.6,2.35597]
[1719973819738,2.3754,3396.3,3395.7,2.35591]
[1719973819959,7.48,3396.4,3395.7,2.35591]
[1719973820467,7.48,3396.4,3395.8,2.3713]
[1719973821445,7.48,3396.4,3395.8,3.1938325]
[1719973823054,7.48,3396.4,3395.8,3.25272353]
[1719973823253,7.48,3396.4,3396.1,2.35564]
[1719973823573,3.747,3396.8,3396.1,2.35564]
[1719973823759,3.0,3396.8,3396.1,2.35564]
[1719973824377,0.50994375,3396.7,3396.1,2.35564]
[1719973824547,8.227,3396.9,3396.2,0.747]
[1719973824548,7.48,3396.9,3396.2,0.747]
[1719973824773,7.48,3396.9,3396.1,0.93000435]
[1719973824774,7.48,3396.9,3396.3,4.84387135]
[1719973824975,7.48,3396.9,3396.1,2.35562]